[Event "*** Titled Tuesday Blitz"]
[Site "Chess.com"]
[Date "2020.05.26"]
[Round "7"]
[White "amiralfio"]
[Black "floplover"]
[Result "0-1"]
[WhiteElo "2397"]
[BlackElo "2249"]
[TimeControl "180+1"]
[EndTime "11:22:08 PDT"]
[Termination "floplover won by resignation"]

1. h3 {[%clk 0:03:00.2]} 1... Nf6 {[%clk 0:02:51.9]} 2. Nf3 {[%clk 0:02:59.5]}
2... d5 {[%clk 0:02:49]} 3. d4 {[%clk 0:02:54.9]} 3... e6 {[%clk 0:02:41.8]} 4.
c4 {[%clk 0:02:52.6]} 4... dxc4 {[%clk 0:02:30.3]} 5. Qa4+ {[%clk 0:02:51.7]}
5... Nbd7 {[%clk 0:02:18.2]} 6. Qxc4 {[%clk 0:02:51]} 6... a6 {[%clk 0:02:18.8]}
7. Qc2 {[%clk 0:02:43.9]} 7... b5 {[%clk 0:02:14.8]} 8. e4 {[%clk 0:02:41.6]}
8... Bb7 {[%clk 0:02:09.7]} 9. e5 {[%clk 0:02:29.1]} 9... Nd5 {[%clk 0:02:07.9]}
10. Be2 {[%clk 0:02:26.4]} 10... c5 {[%clk 0:02:07.9]} 11. dxc5 {[%clk
0:02:21.8]} 11... Bxc5 {[%clk 0:02:07.4]} 12. O-O {[%clk 0:02:22.2]} 12... Rc8
{[%clk 0:02:03.2]} 13. Qd1 {[%clk 0:02:14.9]} 13... Qc7 {[%clk 0:01:53.1]} 14.
a4 {[%clk 0:02:13.5]} 14... b4 {[%clk 0:01:49.8]} 15. Nbd2 {[%clk 0:01:50.4]}
15... Nxe5 {[%clk 0:01:49.7]} 16. Nb3 {[%clk 0:01:50.9]} 16... Nxf3+ {[%clk
0:01:42.6]} 17. Bxf3 {[%clk 0:01:51.8]} 17... O-O {[%clk 0:01:38.3]} 18. Nxc5
{[%clk 0:01:38.4]} 18... Qxc5 {[%clk 0:01:39.2]} 19. Bg5 {[%clk 0:01:31.5]}
19... h6 {[%clk 0:01:28.7]} 20. Rc1 {[%clk 0:01:06]} 20... Qa5 {[%clk
0:01:28.5]} 21. Rxc8 {[%clk 0:00:58.7]} 21... Rxc8 {[%clk 0:01:27.2]} 22. Bd2
{[%clk 0:00:57.8]} 22... Bc6 {[%clk 0:01:18.4]} 23. b3 {[%clk 0:00:25.8]} 23...
Nc3 {[%clk 0:01:17.3]} 24. Bxc3 {[%clk 0:00:25.1]} 24... bxc3 {[%clk 0:01:17.1]}
25. Bxc6 {[%clk 0:00:25]} 25... Rxc6 {[%clk 0:01:16.5]} 26. Qc2 {[%clk
0:00:25.3]} 26... g6 {[%clk 0:00:28.2]} 27. Rc1 {[%clk 0:00:23.1]} 27... Qb4
{[%clk 0:00:28.1]} 28. g3 {[%clk 0:00:19.5]} 28... a5 {[%clk 0:00:26.9]} 29. Kg2
{[%clk 0:00:19.6]} 29... Qc5 {[%clk 0:00:26.9]} 30. h4 {[%clk 0:00:19.3]} 30...
Qd4 {[%clk 0:00:25.5]} 31. Rd1 {[%clk 0:00:16.9]} 31... Qe5 {[%clk 0:00:23.2]}
32. Kh2 {[%clk 0:00:11]} 32... Rb6 {[%clk 0:00:21.5]} 33. Rd3 {[%clk 0:00:10.7]}
33... Rc6 {[%clk 0:00:19.4]} 34. Rd8+ {[%clk 0:00:10.9]} 34... Kg7 {[%clk
0:00:19.2]} 35. Rd3 {[%clk 0:00:11.8]} 35... h5 {[%clk 0:00:18.5]} 36. Re3
{[%clk 0:00:11]} 36... Qd4 {[%clk 0:00:17.4]} 37. Kg2 {[%clk 0:00:09]} 37...
Qd5+ {[%clk 0:00:16]} 38. Kh2 {[%clk 0:00:07.6]} 38... Qf5 {[%clk 0:00:15.8]}
39. Rd3 {[%clk 0:00:07.3]} 39... Kh7 {[%clk 0:00:12.7]} 40. Kg2 {[%clk
0:00:02.3]} 40... Rc7 {[%clk 0:00:08.5]} 41. Kg1 {[%clk 0:00:01.5]} 41... Qxd3
{[%clk 0:00:08]} 42. Qxd3 {[%clk 0:00:02.4]} 42... c2 {[%clk 0:00:08.3]} 43. Qb5
{[%clk 0:00:03.3]} 43... c1=Q+ {[%clk 0:00:07.8]} 44. Kh2 {[%clk 0:00:04.2]}
44... Qc5 {[%clk 0:00:07.1]} 45. Qd3 {[%clk 0:00:03.7]} 45... Rb7 {[%clk
0:00:06]} 46. Qf3 {[%clk 0:00:03.9]} 46... Rd7 {[%clk 0:00:04.8]} 47. Kg2 {[%clk
0:00:03.9]} 47... Kg7 {[%clk 0:00:03.7]} 48. Kh2 {[%clk 0:00:04]} 48... Qf5
{[%clk 0:00:03.8]} 49. Qe3 {[%clk 0:00:03.7]} 49... Rd5 {[%clk 0:00:03.3]} 50.
Qa7 {[%clk 0:00:03.7]} 50... Rd3 {[%clk 0:00:03.1]} 51. Kg2 {[%clk 0:00:03.9]}
51... Rxb3 {[%clk 0:00:03.3]} 52. Qxa5 {[%clk 0:00:03.4]} 52... Qxa5 {[%clk
0:00:02.3]} 0-1

[Event "*** Titled Tuesday Blitz"]
[Site "Chess.com"]
[Date "2020.05.26"]
[Round "7"]
[White "CHESSMASTER759"]
[Black "SantoBlue"]
[Result "0-1"]
[WhiteElo "2649"]
[BlackElo "2796"]
[TimeControl "180+1"]
[EndTime "11:22:09 PDT"]
[Termination "SantoBlue won by checkmate"]

1. Nf3 {[%clk 0:03:00.9]} 1... Nf6 {[%clk 0:02:59.4]} 2. g3 {[%clk 0:03:01.8]}
2... b6 {[%clk 0:02:57.8]} 3. Bg2 {[%clk 0:03:01.7]} 3... Bb7 {[%clk 0:02:58.7]}
4. O-O {[%clk 0:03:02.2]} 4... e6 {[%clk 0:02:58.9]} 5. d4 {[%clk 0:03:01.1]}
5... Be7 {[%clk 0:02:56.7]} 6. c4 {[%clk 0:02:57.7]} 6... O-O {[%clk 0:02:56.7]}
7. Nc3 {[%clk 0:02:58.1]} 7... Ne4 {[%clk 0:02:55.6]} 8. Qc2 {[%clk 0:02:56.7]}
8... Nxc3 {[%clk 0:02:52]} 9. Qxc3 {[%clk 0:02:57.6]} 9... Be4 {[%clk
0:02:51.2]} 10. b3 {[%clk 0:02:54.4]} 10... d6 {[%clk 0:02:44.9]} 11. Bb2 {[%clk
0:02:54.4]} 11... Nd7 {[%clk 0:02:43]} 12. Qe3 {[%clk 0:02:54.4]} 12... Nf6
{[%clk 0:02:37.6]} 13. Rfd1 {[%clk 0:02:50]} 13... Qc8 {[%clk 0:02:37.2]} 14. d5
{[%clk 0:02:41.1]} 14... e5 {[%clk 0:02:36.5]} 15. Rac1 {[%clk 0:02:22.1]} 15...
a5 {[%clk 0:02:33.4]} 16. a3 {[%clk 0:02:20.7]} 16... Bg6 {[%clk 0:02:26.5]} 17.
b4 {[%clk 0:02:17.4]} 17... axb4 {[%clk 0:02:25.4]} 18. axb4 {[%clk 0:02:18.3]}
18... Ng4 {[%clk 0:02:19.7]} 19. Qd2 {[%clk 0:02:11.4]} 19... e4 {[%clk
0:02:06]} 20. Ne1 {[%clk 0:01:40.8]} 20... e3 {[%clk 0:02:02.5]} 21. fxe3 {[%clk
0:01:41.7]} 21... Bg5 {[%clk 0:02:02.5]} 22. Bd4 {[%clk 0:01:40.4]} 22... Re8
{[%clk 0:02:01.8]} 23. Bh3 {[%clk 0:01:40]} 23... h5 {[%clk 0:01:51.9]} 24. Ng2
{[%clk 0:01:33.8]} 24... Bf5 {[%clk 0:01:20.5]} 25. Bxg4 {[%clk 0:01:05.6]}
25... hxg4 {[%clk 0:01:20.4]} 26. Nf4 {[%clk 0:01:06.5]} 26... Be4 {[%clk
0:01:17.5]} 27. Ra1 {[%clk 0:01:00.6]} 27... Qf5 {[%clk 0:01:10.4]} 28. Rxa8
{[%clk 0:00:56.4]} 28... Rxa8 {[%clk 0:01:09.2]} 29. Ra1 {[%clk 0:00:57]} 29...
Rxa1+ {[%clk 0:01:08.2]} 30. Bxa1 {[%clk 0:00:55.2]} 30... Bxf4 {[%clk
0:01:01.7]} 31. exf4 {[%clk 0:00:52]} 31... b5 {[%clk 0:01:01.6]} 32. cxb5
{[%clk 0:00:43.2]} 32... Bxd5 {[%clk 0:01:00.9]} 33. Qd4 {[%clk 0:00:35.2]}
33... f6 {[%clk 0:01:00.6]} 34. Kf2 {[%clk 0:00:33.9]} 34... Qe6 {[%clk
0:00:35.2]} 35. Qe3 {[%clk 0:00:31.2]} 35... Be4 {[%clk 0:00:32.1]} 36. b6
{[%clk 0:00:27.9]} 36... cxb6 {[%clk 0:00:32.3]} 37. Qxb6 {[%clk 0:00:28.8]}
37... Qa2 {[%clk 0:00:29.8]} 38. Qd8+ {[%clk 0:00:25.1]} 38... Kh7 {[%clk
0:00:29.4]} 39. Bxf6 {[%clk 0:00:21.2]} 39... Qa7+ {[%clk 0:00:28.7]} 40. Ke1
{[%clk 0:00:18.6]} 40... gxf6 {[%clk 0:00:20.5]} 41. Qxf6 {[%clk 0:00:19.1]}
41... d5 {[%clk 0:00:03.7]} 42. f5 {[%clk 0:00:17.1]} 42... Qg7 {[%clk
0:00:01.9]} 43. Qe6 {[%clk 0:00:13.4]} 43... Qh6 {[%clk 0:00:01.8]} 44. Qe7+
{[%clk 0:00:10.8]} 44... Kg8 {[%clk 0:00:02]} 45. f6 {[%clk 0:00:07.8]} 45...
Qg6 {[%clk 0:00:02.1]} 46. Kd2 {[%clk 0:00:05.2]} 46... Qf7 {[%clk 0:00:02.4]}
47. Qd8+ {[%clk 0:00:01.8]} 47... Kh7 {[%clk 0:00:02.5]} 48. b5 {[%clk
0:00:02.1]} 48... Kg6 {[%clk 0:00:02.6]} 49. b6 {[%clk 0:00:02.1]} 49... d4
{[%clk 0:00:02.4]} 50. Qxd4 {[%clk 0:00:02.2]} 50... Bb7 {[%clk 0:00:01.8]} 51.
e4 {[%clk 0:00:01.3]} 51... Qa2+ {[%clk 0:00:01.5]} 52. Ke3 {[%clk 0:00:01.1]}
52... Qb3+ {[%clk 0:00:02]} 53. Kf4 {[%clk 0:00:01.1]} 53... Qf3+ {[%clk
0:00:02.5]} 54. Ke5 {[%clk 0:00:02]} 54... Qxf6# {[%clk 0:00:03.2]} 0-1

[Event "*** Titled Tuesday Blitz"]
[Site "Chess.com"]
[Date "2020.05.26"]
[Round "7"]
[White "Parkas"]
[Black "latixxa"]
[Result "1-0"]
[WhiteElo "2292"]
[BlackElo "2119"]
[TimeControl "180+1"]
[EndTime "11:22:09 PDT"]
[Termination "Parkas won on time"]

1. e4 {[%clk 0:03:00.9]} 1... c5 {[%clk 0:02:58.8]} 2. Ne2 {[%clk 0:02:59.6]}
2... Nc6 {[%clk 0:02:57.2]} 3. Nbc3 {[%clk 0:02:54.3]} 3... d6 {[%clk
0:02:56.8]} 4. g3 {[%clk 0:02:53.6]} 4... g6 {[%clk 0:02:56]} 5. d4 {[%clk
0:02:52]} 5... cxd4 {[%clk 0:02:52.9]} 6. Nxd4 {[%clk 0:02:52.9]} 6... Bg7
{[%clk 0:02:53.2]} 7. Nde2 {[%clk 0:02:50.7]} 7... Nf6 {[%clk 0:02:50.7]} 8. Bg2
{[%clk 0:02:50.9]} 8... Be6 {[%clk 0:02:49.3]} 9. O-O {[%clk 0:02:49.7]} 9...
O-O {[%clk 0:02:49.5]} 10. Nf4 {[%clk 0:02:48.3]} 10... Bd7 {[%clk 0:02:47.5]}
11. h3 {[%clk 0:02:28.1]} 11... Rc8 {[%clk 0:02:46.2]} 12. Nfd5 {[%clk 0:02:21]}
12... Ne5 {[%clk 0:02:42.9]} 13. Be3 {[%clk 0:02:12]} 13... Nc4 {[%clk
0:02:33.2]} 14. Bxa7 {[%clk 0:01:44.4]} 14... Nxd5 {[%clk 0:02:10.2]} 15. Nxd5
{[%clk 0:01:41.5]} 15... Be6 {[%clk 0:01:57.4]} 16. b3 {[%clk 0:01:38]} 16...
Bxa1 {[%clk 0:01:50.4]} 17. Qxa1 {[%clk 0:01:29.3]} 17... Ne5 {[%clk 0:01:49.9]}
18. c4 {[%clk 0:00:54.3]} 18... Bxd5 {[%clk 0:01:48.9]} 19. exd5 {[%clk
0:00:50.9]} 19... Ra8 {[%clk 0:01:42.6]} 20. Bd4 {[%clk 0:00:48.5]} 20... f6
{[%clk 0:01:41.1]} 21. f4 {[%clk 0:00:43.3]} 21... Nd7 {[%clk 0:01:40.5]} 22. h4
{[%clk 0:00:43.6]} 22... Nc5 {[%clk 0:01:29]} 23. h5 {[%clk 0:00:39.2]} 23...
Nxb3 {[%clk 0:01:26.1]} 24. Qc3 {[%clk 0:00:36.8]} 24... Nxd4 {[%clk 0:01:26]}
25. Qxd4 {[%clk 0:00:37.7]} 25... Rxa2 {[%clk 0:01:24.8]} 26. Bh3 {[%clk
0:00:35.6]} 26... Ra6 {[%clk 0:01:19.4]} 27. Kh1 {[%clk 0:00:31.6]} 27... Qb6
{[%clk 0:01:17.1]} 28. Qe4 {[%clk 0:00:29.7]} 28... f5 {[%clk 0:01:14.1]} 29.
Qe6+ {[%clk 0:00:28.4]} 29... Kg7 {[%clk 0:01:09.3]} 30. Qxe7+ {[%clk
0:00:26.9]} 30... Rf7 {[%clk 0:01:09]} 31. h6+ {[%clk 0:00:27.3]} 31... Kg8
{[%clk 0:00:52.1]} 32. Qe8+ {[%clk 0:00:27.4]} 32... Rf8 {[%clk 0:00:51.6]} 33.
Qe6+ {[%clk 0:00:27.5]} 33... Rf7 {[%clk 0:00:40.9]} 34. Re1 {[%clk 0:00:24.9]}
34... Ra8 {[%clk 0:00:34.4]} 35. Bg2 {[%clk 0:00:18]} 35... Qc7 {[%clk
0:00:29.6]} 36. Bf1 {[%clk 0:00:14.5]} 36... Qd7 {[%clk 0:00:28.5]} 37. Qe3
{[%clk 0:00:13.9]} 37... Rd8 {[%clk 0:00:20.8]} 38. c5 {[%clk 0:00:13.2]} 38...
dxc5 {[%clk 0:00:20.1]} 39. Bg2 {[%clk 0:00:12.8]} 39... Qd6 {[%clk 0:00:19.1]}
40. Qd3 {[%clk 0:00:11.7]} 40... b6 {[%clk 0:00:14.4]} 41. Qb5 {[%clk
0:00:10.4]} 41... Re7 {[%clk 0:00:11.3]} 42. Ra1 {[%clk 0:00:08.5]} 42... Kf8
{[%clk 0:00:08.8]} 43. Qb2 {[%clk 0:00:07.5]} 43... Kg8 {[%clk 0:00:07.9]} 44.
Rb1 {[%clk 0:00:07.8]} 44... Rb8 {[%clk 0:00:07]} 45. Kh2 {[%clk 0:00:07.1]}
45... Rf7 {[%clk 0:00:07]} 46. Re1 {[%clk 0:00:06.8]} 46... Qf6 {[%clk
0:00:06.8]} 47. Qb5 {[%clk 0:00:05.6]} 47... g5 {[%clk 0:00:06]} 48. Re6 {[%clk
0:00:02.7]} 48... Qc3 {[%clk 0:00:03.1]} 49. Qc6 {[%clk 0:00:01.1]} 49... gxf4
{[%clk 0:00:02.4]} 50. gxf4 {[%clk 0:00:02]} 50... Qe3 {[%clk 0:00:01.9]} 51.
Qd6 {[%clk 0:00:02.4]} 51... Qd2 {[%clk 0:00:01.2]} 52. Qxb8+ {[%clk 0:00:02]}
1-0

[Event "*** Titled Tuesday Blitz"]
[Site "Chess.com"]
[Date "2020.05.26"]
[Round "7"]
[White "KerryStead"]
[Black "czasnaszachy"]
[Result "0-1"]
[WhiteElo "2109"]
[BlackElo "2338"]
[TimeControl "180+1"]
[EndTime "11:22:12 PDT"]
[Termination "czasnaszachy won on time"]

1. d4 {[%clk 0:02:34.9]} 1... Nf6 {[%clk 0:02:58.9]} 2. f3 {[%clk 0:02:34]} 2...
d5 {[%clk 0:02:54.7]} 3. e4 {[%clk 0:02:33.4]} 3... dxe4 {[%clk 0:02:50.8]} 4.
Nc3 {[%clk 0:02:32.5]} 4... exf3 {[%clk 0:02:17.5]} 5. Nxf3 {[%clk 0:02:33.4]}
5... Bg4 {[%clk 0:02:16.2]} 6. h3 {[%clk 0:02:32.8]} 6... Bh5 {[%clk 0:02:12.4]}
7. g4 {[%clk 0:02:32]} 7... Bg6 {[%clk 0:02:11.8]} 8. Ne5 {[%clk 0:02:32]} 8...
e6 {[%clk 0:01:51.8]} 9. Bg5 {[%clk 0:02:16.1]} 9... Be7 {[%clk 0:01:40.8]} 10.
Nxg6 {[%clk 0:01:59]} 10... hxg6 {[%clk 0:01:38.8]} 11. Bg2 {[%clk 0:01:58.6]}
11... c6 {[%clk 0:01:36.9]} 12. O-O {[%clk 0:01:52.5]} 12... Nbd7 {[%clk
0:01:31.2]} 13. Qf3 {[%clk 0:01:41.8]} 13... O-O {[%clk 0:01:09]} 14. Rae1
{[%clk 0:01:34.1]} 14... Nd5 {[%clk 0:01:06]} 15. Bxe7 {[%clk 0:01:32.5]} 15...
Nxe7 {[%clk 0:01:03.8]} 16. Ne4 {[%clk 0:01:31.5]} 16... Nd5 {[%clk 0:00:58.7]}
17. c3 {[%clk 0:01:29.8]} 17... N7f6 {[%clk 0:00:58]} 18. h4 {[%clk 0:01:24.3]}
18... Nxe4 {[%clk 0:00:55.2]} 19. Rxe4 {[%clk 0:01:17.9]} 19... Qxh4 {[%clk
0:00:53]} 20. Re5 {[%clk 0:01:11.1]} 20... Qf6 {[%clk 0:00:38.3]} 21. Qe2 {[%clk
0:01:07.8]} 21... Qh4 {[%clk 0:00:35.5]} 22. c4 {[%clk 0:00:58.3]} 22... Nf6
{[%clk 0:00:33.8]} 23. Rf4 {[%clk 0:00:54.7]} 23... Qg3 {[%clk 0:00:31.2]} 24.
Qf2 {[%clk 0:00:49.8]} 24... Qxf2+ {[%clk 0:00:30.5]} 25. Kxf2 {[%clk
0:00:49.5]} 25... Rfd8 {[%clk 0:00:26.8]} 26. Ke3 {[%clk 0:00:49]} 26... Rd7
{[%clk 0:00:26.9]} 27. g5 {[%clk 0:00:47.1]} 27... Ne8 {[%clk 0:00:24]} 28. Bh3
{[%clk 0:00:44.4]} 28... Rad8 {[%clk 0:00:22.8]} 29. b3 {[%clk 0:00:42.7]} 29...
Nd6 {[%clk 0:00:19.8]} 30. Kd3 {[%clk 0:00:25.3]} 30... Nf5 {[%clk 0:00:18.2]}
31. Bxf5 {[%clk 0:00:21]} 31... gxf5 {[%clk 0:00:18.3]} 32. Kc3 {[%clk
0:00:21.1]} 32... b6 {[%clk 0:00:17.6]} 33. g6 {[%clk 0:00:20.2]} 33... f6
{[%clk 0:00:12.2]} 34. Rxe6 {[%clk 0:00:20]} 34... Rd6 {[%clk 0:00:11.4]} 35.
Rxd6 {[%clk 0:00:19.9]} 35... Rxd6 {[%clk 0:00:11.6]} 36. Rxf5 {[%clk
0:00:20.8]} 36... Kf8 {[%clk 0:00:11.5]} 37. b4 {[%clk 0:00:19.7]} 37... Ke7
{[%clk 0:00:11.5]} 38. c5 {[%clk 0:00:19.8]} 38... Re6 {[%clk 0:00:09.4]} 39.
Kd3 {[%clk 0:00:18.9]} 39... Re1 {[%clk 0:00:08.6]} 40. Rf2 {[%clk 0:00:16.2]}
40... Rg1 {[%clk 0:00:08.2]} 41. Re2+ {[%clk 0:00:15.2]} 41... Kd7 {[%clk
0:00:08.4]} 42. a4 {[%clk 0:00:13.6]} 42... Rxg6 {[%clk 0:00:08.2]} 43. b5
{[%clk 0:00:11.2]} 43... Rg3+ {[%clk 0:00:07.9]} 44. Kc4 {[%clk 0:00:10.6]}
44... cxb5+ {[%clk 0:00:06.2]} 45. axb5 {[%clk 0:00:09.8]} 45... Ra3 {[%clk
0:00:05.7]} 46. c6+ {[%clk 0:00:05.4]} 46... Kd6 {[%clk 0:00:05.5]} 47. Rg2
{[%clk 0:00:04.6]} 47... Ra4+ {[%clk 0:00:05.2]} 48. Kd3 {[%clk 0:00:04.1]}
48... g5 {[%clk 0:00:04.8]} 49. Rf2 {[%clk 0:00:03.6]} 49... Ra3+ {[%clk
0:00:04]} 50. Kc4 {[%clk 0:00:03.1]} 50... Ra4+ {[%clk 0:00:03.6]} 51. Kc3
{[%clk 0:00:02.2]} 51... Kd5 {[%clk 0:00:01.4]} 0-1

[Event "*** Titled Tuesday Blitz"]
[Site "Chess.com"]
[Date "2020.05.26"]
[Round "7"]
[White "pedro_nascimento85"]
[Black "Srisshhhtea"]
[Result "0-1"]
[WhiteElo "1868"]
[BlackElo "2176"]
[TimeControl "180+1"]
[EndTime "11:22:12 PDT"]
[Termination "Srisshhhtea won on time"]

1. d4 {[%clk 0:03:00.9]} 1... Nf6 {[%clk 0:02:58.8]} 2. c4 {[%clk 0:03:00.1]}
2... c5 {[%clk 0:02:56.7]} 3. d5 {[%clk 0:02:59.5]} 3... b5 {[%clk 0:02:50.7]}
4. Qc2 {[%clk 0:02:52.2]} 4... g6 {[%clk 0:02:44.4]} 5. e4 {[%clk 0:02:51.1]}
5... d6 {[%clk 0:02:43.4]} 6. Bg5 {[%clk 0:02:33]} 6... Bg7 {[%clk 0:02:36.3]}
7. Nd2 {[%clk 0:02:32.1]} 7... O-O {[%clk 0:02:30]} 8. Ngf3 {[%clk 0:02:24.1]}
8... Nbd7 {[%clk 0:02:14.1]} 9. h3 {[%clk 0:02:19.4]} 9... Qb6 {[%clk
0:02:02.2]} 10. Be2 {[%clk 0:02:07.2]} 10... Rb8 {[%clk 0:01:58.6]} 11. O-O
{[%clk 0:01:55.5]} 11... a6 {[%clk 0:01:54.2]} 12. Rab1 {[%clk 0:01:47.5]} 12...
e6 {[%clk 0:01:47.8]} 13. dxe6 {[%clk 0:01:39.3]} 13... fxe6 {[%clk 0:01:48.7]}
14. b3 {[%clk 0:01:33.8]} 14... Bb7 {[%clk 0:01:44.8]} 15. Rbd1 {[%clk
0:01:30.9]} 15... h6 {[%clk 0:01:33.9]} 16. Bf4 {[%clk 0:01:12.7]} 16... e5
{[%clk 0:01:28.7]} 17. Be3 {[%clk 0:01:05.3]} 17... Rfd8 {[%clk 0:01:23]} 18.
Ne1 {[%clk 0:01:03.3]} 18... g5 {[%clk 0:01:21.3]} 19. f3 {[%clk 0:01:00.7]}
19... Nf8 {[%clk 0:01:20.4]} 20. Nb1 {[%clk 0:00:54]} 20... Ne6 {[%clk
0:01:16.4]} 21. Nc3 {[%clk 0:00:52.4]} 21... Nd4 {[%clk 0:01:13.5]} 22. Bxd4
{[%clk 0:00:49.6]} 22... cxd4 {[%clk 0:01:14.4]} 23. Nd5 {[%clk 0:00:50]} 23...
Bxd5 {[%clk 0:01:08.8]} 24. Nd3 {[%clk 0:00:46]} 24... Bb7 {[%clk 0:01:06]} 25.
cxb5 {[%clk 0:00:43.6]} 25... Rbc8 {[%clk 0:01:04.1]} 26. Qb1 {[%clk 0:00:40.6]}
26... axb5 {[%clk 0:01:04.2]} 27. Nb4 {[%clk 0:00:37.6]} 27... d5 {[%clk
0:01:00.2]} 28. exd5 {[%clk 0:00:35.1]} 28... Nxd5 {[%clk 0:01:01.1]} 29. Nxd5
{[%clk 0:00:33.1]} 29... Bxd5 {[%clk 0:01:02]} 30. Qd3 {[%clk 0:00:32.7]} 30...
Re8 {[%clk 0:00:57.1]} 31. Qxb5 {[%clk 0:00:30.5]} 31... Qxb5 {[%clk 0:00:54.7]}
32. Bxb5 {[%clk 0:00:30.3]} 32... Bc6 {[%clk 0:00:54.5]} 33. Bc4+ {[%clk
0:00:29.1]} 33... Kf8 {[%clk 0:00:53.5]} 34. a4 {[%clk 0:00:25.8]} 34... Bxa4
{[%clk 0:00:48.6]} 35. Ra1 {[%clk 0:00:24.5]} 35... Bc6 {[%clk 0:00:43.1]} 36.
Ra7 {[%clk 0:00:24.1]} 36... Re7 {[%clk 0:00:43.4]} 37. Ra6 {[%clk 0:00:23.1]}
37... Rec7 {[%clk 0:00:39.2]} 38. Kh2 {[%clk 0:00:19.5]} 38... Ke7 {[%clk
0:00:38.9]} 39. Re1 {[%clk 0:00:19.2]} 39... Kd6 {[%clk 0:00:37.6]} 40. Rea1
{[%clk 0:00:18.2]} 40... Rb8 {[%clk 0:00:37]} 41. R1a5 {[%clk 0:00:15.9]} 41...
Bf6 {[%clk 0:00:29]} 42. Rd5+ {[%clk 0:00:14.8]} 42... Ke7 {[%clk 0:00:28.8]}
43. Rc5 {[%clk 0:00:14.9]} 43... Rbc8 {[%clk 0:00:24.2]} 44. b4 {[%clk
0:00:09.6]} 44... Bd7 {[%clk 0:00:22.2]} 45. Rxc7 {[%clk 0:00:05.2]} 45... Rxc7
{[%clk 0:00:23.1]} 46. Bd5 {[%clk 0:00:06.1]} 46... Rc2 {[%clk 0:00:18.6]} 47.
Be4 {[%clk 0:00:03.6]} 47... Rb2 {[%clk 0:00:17]} 48. Ra7 {[%clk 0:00:03.8]}
48... Rxb4 {[%clk 0:00:14.4]} 49. Bc6 {[%clk 0:00:03.5]} 49... Kd6 {[%clk
0:00:12.7]} 50. Bxd7 {[%clk 0:00:02.6]} 50... Rb2 {[%clk 0:00:11.4]} 51. Bf5
{[%clk 0:00:01.8]} 51... Kc5 {[%clk 0:00:11]} 0-1

[Event "*** Titled Tuesday Blitz"]
[Site "Chess.com"]
[Date "2020.05.26"]
[Round "7"]
[White "IAgrest"]
[Black "Ashedu66"]
[Result "1-0"]
[WhiteElo "2269"]
[BlackElo "2160"]
[TimeControl "180+1"]
[EndTime "11:22:13 PDT"]
[Termination "IAgrest won on time"]

1. e4 {[%clk 0:03:00.9]} 1... e5 {[%clk 0:02:58.7]} 2. Nf3 {[%clk 0:03:00.8]}
2... Nc6 {[%clk 0:02:58.6]} 3. Bb5 {[%clk 0:03:01.4]} 3... Nge7 {[%clk 0:02:58]}
4. c3 {[%clk 0:02:59.7]} 4... g6 {[%clk 0:02:57.1]} 5. O-O {[%clk 0:02:59.1]}
5... Bg7 {[%clk 0:02:56.7]} 6. d4 {[%clk 0:02:57]} 6... exd4 {[%clk 0:02:56.7]}
7. cxd4 {[%clk 0:02:57.4]} 7... d5 {[%clk 0:02:56.9]} 8. Nc3 {[%clk 0:02:50.6]}
8... O-O {[%clk 0:02:51.8]} 9. e5 {[%clk 0:02:43.6]} 9... Bg4 {[%clk 0:02:50]}
10. Be2 {[%clk 0:02:42.1]} 10... f6 {[%clk 0:02:48.2]} 11. h3 {[%clk 0:02:31]}
11... Bxf3 {[%clk 0:02:28.6]} 12. Bxf3 {[%clk 0:02:31.9]} 12... fxe5 {[%clk
0:02:23.8]} 13. dxe5 {[%clk 0:02:31.9]} 13... Nxe5 {[%clk 0:02:23.2]} 14. Bxd5+
{[%clk 0:02:28.6]} 14... Nxd5 {[%clk 0:02:14.2]} 15. Qxd5+ {[%clk 0:02:28.1]}
15... Qxd5 {[%clk 0:02:06.7]} 16. Nxd5 {[%clk 0:02:29]} 16... Rf7 {[%clk
0:01:43]} 17. Be3 {[%clk 0:02:10.8]} 17... c6 {[%clk 0:01:37]} 18. Nb4 {[%clk
0:01:09.1]} 18... Nc4 {[%clk 0:01:25.2]} 19. Bg5 {[%clk 0:00:57.4]} 19... Bxb2
{[%clk 0:00:53.8]} 20. Rab1 {[%clk 0:00:56.5]} 20... Bd4 {[%clk 0:00:48.5]} 21.
Nc2 {[%clk 0:00:54.6]} 21... Bb6 {[%clk 0:00:45.3]} 22. Rbd1 {[%clk 0:00:46.6]}
22... Re8 {[%clk 0:00:40.7]} 23. Nd4 {[%clk 0:00:43.6]} 23... Re4 {[%clk
0:00:27.8]} 24. Nf3 {[%clk 0:00:34.5]} 24... Re2 {[%clk 0:00:22.9]} 25. a4
{[%clk 0:00:34]} 25... Kg7 {[%clk 0:00:17.1]} 26. Bh4 {[%clk 0:00:20.3]} 26...
h6 {[%clk 0:00:16.5]} 27. Bg3 {[%clk 0:00:19.9]} 27... g5 {[%clk 0:00:15.1]} 28.
Rfe1 {[%clk 0:00:18.5]} 28... Rfe7 {[%clk 0:00:13.4]} 29. Rxe2 {[%clk
0:00:18.4]} 29... Rxe2 {[%clk 0:00:13.5]} 30. Rd7+ {[%clk 0:00:19]} 30... Kf6
{[%clk 0:00:13.6]} 31. Rxb7 {[%clk 0:00:18.2]} 31... Nd2 {[%clk 0:00:12.7]} 32.
Nxd2 {[%clk 0:00:15.5]} 32... Rxd2 {[%clk 0:00:12.4]} 33. a5 {[%clk 0:00:14.6]}
33... Bxa5 {[%clk 0:00:11.7]} 34. Rxa7 {[%clk 0:00:14.5]} 34... Bb4 {[%clk
0:00:11]} 35. Ra6 {[%clk 0:00:14.2]} 35... Rc2 {[%clk 0:00:10.9]} 36. h4 {[%clk
0:00:11.4]} 36... Kf5 {[%clk 0:00:09.9]} 37. hxg5 {[%clk 0:00:11.2]} 37... hxg5
{[%clk 0:00:10.1]} 38. Ra8 {[%clk 0:00:10.6]} 38... c5 {[%clk 0:00:09.6]} 39. f3
{[%clk 0:00:08.9]} 39... c4 {[%clk 0:00:08.8]} 40. Rc8 {[%clk 0:00:07.6]} 40...
c3 {[%clk 0:00:08.2]} 41. Bf2 {[%clk 0:00:05.7]} 41... Rc1+ {[%clk 0:00:08.1]}
42. Kh2 {[%clk 0:00:05.5]} 42... Rf1 {[%clk 0:00:06.6]} 43. Be3 {[%clk
0:00:04.1]} 43... Bd6+ {[%clk 0:00:06.4]} 44. g3 {[%clk 0:00:02.9]} 44... Be5
{[%clk 0:00:05.9]} 45. Kg2 {[%clk 0:00:01.8]} 45... Rb1 {[%clk 0:00:04]} 46. g4+
{[%clk 0:00:01.8]} 46... Ke6 {[%clk 0:00:03.5]} 47. Rc6+ {[%clk 0:00:01.9]}
47... Kd5 {[%clk 0:00:02.6]} 48. Rc8 {[%clk 0:00:01.9]} 48... Rb2+ {[%clk
0:00:02]} 49. Kf1 {[%clk 0:00:02.2]} 49... Rb1+ {[%clk 0:00:01.7]} 50. Ke2
{[%clk 0:00:01.8]} 50... Rb2+ {[%clk 0:00:01.9]} 51. Kd3 {[%clk 0:00:01.8]}
51... Rb1 {[%clk 0:00:02]} 52. Bxg5 {[%clk 0:00:01.8]} 52... Rd1+ {[%clk
0:00:01.5]} 53. Kc2 {[%clk 0:00:01.9]} 53... Rf1 {[%clk 0:00:01.6]} 54. f4
{[%clk 0:00:01.2]} 54... Bxf4 {[%clk 0:00:01.2]} 55. Bxf4 {[%clk 0:00:02.1]} 1-0